Cogmind - Beta 13 @@@ ROGUE MODE // 2024.04.11 @ 16:14:51 Player: mehbruh Result: Destroyed by D-53 Grenadier with Mini Grenade Launcher Performance ------------- Evolutions (0) 0 Regions Visited (2) 400 Robots Destroyed (28) 140 Value Destroyed (346) 346 Prototype IDs (3) 60 Alien Tech Used (0) 0 Bonus (0) 0 TOTAL SCORE: 946 Bonus ------- None Cogmind --------- Core Integrity 0/250 Matter 187/300 Energy 160/160 System Corruption 0% Temperature Cool (6) Movement Treading (240) Ox1 Location -10/Mines Parts ------- > --- POWER (1) -------- Light Nuclear Core > --- PROPULSION (2) --- Light Treads > --- UTILITY (2) ------ Large Storage Unit > --- WEAPON (2) ------- Grenade Launcher Grenade Launcher > --- INVENTORY (15) --- Light Ion Engine Light Treads Light Treads Light Treads Light Treads Wheel High-capacity Storage Unit Medium Laser Assault Rifle Heavy Assault Rifle Heavy Assault Rifle Heavy Assault Rifle Heavy Assault Rifle Peak State ------------ > --- POWER ------------ Light Nuclear Core > --- PROPULSION ------- Light Treads Light Treads > --- UTILITY ---------- Heat Sink Large Storage Unit > --- WEAPON ----------- Medium Laser Assault Rifle > --- INVENTORY -------- Light Ion Engine Light Treads Light Treads Light Treads Light Treads Light Treads Wheel High-capacity Storage Unit Visual Processing Unit Signal Interpreter Heavy Assault Rifle Heavy Assault Rifle Heavy Assault Rifle Heavy Assault Rifle Grenade Launcher [Rating: 11] Favorites ----------- Power Light Nuclear Core Engine Light Ion Engine Power Core Light Nuclear Core Propulsion Light Treads Treads Light Treads Utility Heat Sink Device Heat Sink Storage Large Storage Unit Weapon Medium Laser Energy Gun Medium Laser Ballistic Gun Assault Rifle Launcher Grenade Launcher Build | -11 -10 -10 ------- Run | Yrd Mat Min Slots Evolved . | . . . Power . | . . . Propulsion . | . . . Utility . | . . . Weapon . | . . . Parts Attached 28 | 6 14 8 Power 3 | 1 2 . Engine 2 | 1 1 . Core 1 | . 1 . Reactor . | . . . Propulsion 3 | 2 . 1 Treads 3 | 2 . 1 Leg . | . . . Wheel . | . . . Hover . | . . . Flight . | . . . Utility 4 | 1 3 . Device 1 | . 1 . Storage 3 | 1 2 . Processor . | . . . Hackware . | . . . Protection . | . . . Artifact . | . . . Weapon 18 | 2 9 7 Energy Gun 5 | 1 2 2 Energy Cannon . | . . . Ballistic Gun 5 | 1 4 . Ballistic Cannon . | . . . Launcher 8 | . 3 5 Special Weapon . | . . . Impact Weapon . | . . . Slashing Weapon . | . . . Piercing Weapon . | . . . Special Melee Weapon . | . . . Unidentified Prototypes . | . . . Parts Lost 5 | . 1 4 Power 1 | . 1 . Propulsion 2 | . . 2 Utility 1 | . . 1 Weapon 1 | . . 1 Highest Loss Streak 4 | . 1 4 To Critical Strikes . | . . . Average Slot Usage (%) 98 | . 98 99 Engine 8 | . 10 . Core 5 | . 3 14 Treads 28 | . 28 28 Device 12 | . 12 13 Storage 14 | . 14 14 Energy Gun 13 | . 13 10 Ballistic Gun 11 | . 11 13 Launcher 2 | . 2 4 Naked Turns . | . . . Heaviest Build 31 | 14 31 31 Greatest Support 40 | 40 40 40 Greatest Overweight (x) 3 | 3 . . Average Overweight (x) . | . . . Largest Inventory Capacity 15 | 8 15 15 Average Capacity 12 | 7 12 15 Most Carried 15 | 2 15 15 Average Carried 9 | 1 8 14 Final Capacity 15 | 8 15 15 Final Carried 15 | 2 15 13 Class Distribution -------------------- 100% | Mutant Dominant Class ---------------- Mutant | -10/Materials Mutant | -10/Mines Resources | -11 -10 -10 ----------- Run | Yrd Mat Min Matter Collected 600 | 178 387 35 Remotely . | . . . Salvage Created 552 | . 451 101 Parts 45 | . 38 7 Haulers Intercepted 2 | . 2 . Recyclers Shooed 6 | . 6 . Parts Field Recycled . | . . . Retrieved Matter . | . . . Parts Self-Destructed . | . . . Prevented . | . . . Kills | -11 -10 -10 ------- Run | Yrd Mat Min Combat Hostiles Destroyed 21 | . 9 12 Guns 8 | . 7 1 AOE 13 | . 2 11 Classes Destroyed 8 | . 7 1 Worker 5 | . 4 1 Hauler 2 | . 2 . Recycler 1 | . 1 . Operator 1 | . 1 . Watcher 1 | . 1 . Swarmer 14 | . 5 9 Grunt 4 | . 4 . Assembled 3 | . . 3 Best Kill Streak 6 | . 3 6 Combat Bots Only 6 | . 3 6 Max Kills in Single Turn 4 | . 2 4 Gunslinging . | . . . Exploded 3 | . 1 3 Melee . | . . . Uniques/NPCs Destroyed . | . . . Combat | -11 -10 -10 -------- Run | Yrd Mat Min Hostile Shots Fired 78 | . 54 24 Missed 22 | . 19 3 Damage Taken 1013 | . 344 669 Core 261 | . 42 219 Absorbed by Shields . | . . . Regen/Repaired (Parts) 60 | . 60 . Core Remaining (%) 100 | 100 . . Volleys Fired 71 | . 60 11 Largest 2 | . 2 2 Hottest 80 | . 80 70 Shots Fired 137 | . 119 18 Gun 126 | . 115 11 Cannon . | . . . Launcher 11 | . 4 7 Special . | . . . Kinetic 62 | . 56 6 Thermal 64 | . 59 5 Explosive 11 | . 4 7 Electromagnetic . | . . . Robot Hit Streak 12 | . 12 6 Robot Miss Streak 6 | . 6 1 Penetration Max . | . . . Secondary Targets . | . . . Shots Hit Robots 74 | . 63 11 Core Hits 53 | . 33 20 Critical Kills . | . . . Critical Parts Destroyed . | . . . Critical Strikes 3 | . 2 1 Burn 3 | . 2 1 Melee Attacks . | . . . Impact . | . . . Slashing . | . . . Piercing . | . . . Sneak Attacks . | . . . Combat Hostiles . | . . . Follow-up Attacks . | . . . Damage Inflicted 1516 | . 930 586 Guns 891 | . 789 102 Cannons . | . . . Explosions 563 | . 79 484 Melee . | . . . Ramming 62 | . 62 . Kinetic 486 | . 434 52 Thermal 405 | . 355 50 Explosive 563 | . 79 484 Electromagnetic . | . . . Impact . | . . . Slashing . | . . . Piercing . | . . . Highest Corruption . | . . . Average Corruption . | . . . Corruption Purged . | . . . Corruption Blocked . | . . . Overload Shots . | . . . Overflow Damage 27 | . . 27 Projectiles . | . . . Explosions 27 | . . 27 Melee . | . . . Knockbacks 2 | . 2 . Impact 2 | . 2 . Kinetic . | . . . Secondary . | . . . Self-Inflicted Damage 84 | . . 84 Shots 4 | . . 4 Rammed 12 | . 12 . Targets Rammed 15 | . 15 . Kicked . | . . . Crushed 3 | . 3 . Highest Temperature 48 | . 48 6 Average Temperature 16 | . 17 4 Received Heat Transfer 87 | . 87 . Siege Activations . | . . . Robots Corrupted . | . . . Combat Hostiles . | . . . Parts Fried . | . . . Impact Corruptions . | . . . Robots Melted . | . . . Combat Hostiles . | . . . Parts Melted 1 | . 1 . Heat Transferred 1406 | . 1184 222 Parts Sabotaged . | . . . Parts Stolen . | . . . Parts Stripped . | . . . Power Chain Reactions . | . . . Alert | -11 -10 -10 ------- Run | Yrd Mat Min Peak Influence 297 | . 157 297 Initial 16 | . . 16 Average 76 | . 66 142 Maximum Alert Level 1 | . . 1 Low Security (%) 96 | 100 100 77 Level 1 3 | . . 22 Level 2 . | . . . Level 3 . | . . . Level 4 . | . . . Level 5 . | . . . High Security . | . . . Max Security . | . . . Squads Dispatched 1 | . 1 . Investigation . | . . . Extermination . | . . . Reinforcement 1 | . 1 . Assault . | . . . Garrison . | . . . Intercept . | . . . Searches Triggered . | . . . Construction Impeded . | . . . Haulers Reinforced . | . . . Active Scanning Responses . | . . . Cargo Convoy Interrupts . | . . . Stealth | -11 -10 -10 --------- Run | Yrd Mat Min Distress Signals 3 | . 3 . Communications Jammed . | . . . Distress Signals . | . . . Times Spotted 42 | . 28 14 Peak Tracking Total 5 | . 5 3 Tactical Retreats . | . . . Traps | -11 -10 -10 ------- Run | Yrd Mat Min Traps Triggered . | . . . Indirectly . | . . . Trap Hack Attempts . | . . . Triggered . | . . . Disarmed 6 | . 6 . Reprogrammed . | . . . Reused . | . . . Traps Extracted . | . . . Installed . | . . . Triggered . | . . . Machines | -11 -10 -10 ---------- Run | Yrd Mat Min Machines Disabled 1 | . . 1 Max in Single Turn 1 | . . 1 Machines Repaired . | . . . Machines Dismantled . | . . . Machines Sabotaged . | . . . Overloaded Fab Kills . | . . . Hacking | -11 -10 -10 --------- Run | Yrd Mat Min Machines Accessed 8 | . 8 . Terminals 6 | . 6 . Fabricators . | . . . Repair Stations 1 | . 1 . Recycling Units 1 | . 1 . Scanalyzers . | . . . Garrison Access . | . . . Total Hacks 32 | . 32 . Successful 15 | . 15 . Failed 16 | . 16 . Catastrophic 1 | . 1 . Database Lockouts 1 | . 1 . Manual 20 | . 20 . Terminals 26 | . 26 . Fabricators . | . . . Repair Stations 2 | . 2 . Recycling Units 4 | . 4 . Scanalyzers . | . . . Garrison Access . | . . . Terminal Hacks 7 | . 7 . Robot Analysis 2 | . 2 . Prototype ID Bank 2 | . 2 . Locate Traps 1 | . 1 . Disarm Traps 1 | . 1 . Hauler Manifests 1 | . 1 . Fabricator Hacks . | . . . Repair Station Hacks 2 | . 2 . Scan Component 1 | . 1 . Repair 1 | . 1 . Recycling Unit Hacks 1 | . 1 . Retrieve Components 1 | . 1 . Scanalyzer . | . . . Garrison Access Hacks . | . . . Unauthorized Hacks 5 | . 5 . Terminals 4 | . 4 . Botnet 4 | . 4 . Fabricators . | . . . Repair Stations . | . . . Recycling Units 1 | . 1 . Mask 1 | . 1 . Scanalyzers . | . . . Garrison Access . | . . . Data Cores Recovered . | . . . Used . | . . . Hacking Detections 8 | . 8 . Full Trace Events . | . . . Feedback Events . | . . . Feedback Blocked . | . . . Robot Schematics Acquired . | . . . Robots Built . | . . . Authchips . | . . . Time . | . . . Total Robot Build Rating . | . . . Part Schematics Acquired . | . . . Parts Built . | . . . Authchips . | . . . Time . | . . . Total Part Build Rating . | . . . Parts Repaired 1 | . 1 . Time 26 | . 26 . Parts Recycled . | . . . Recycled Matter . | . . . Retrieved Matter . | . . . Retrieved Components 9 | . 9 . Parts Scanalyzed . | . . . Part Schematics Acquired . | . . . Parts Damaged . | . . . Bothacking | -11 -10 -10 ------------ Run | Yrd Mat Min Used RIF Installer . | . . . Robots Hacked . | . . . Non-combat . | . . . Combat . | . . . Robot Hacks Applied . | . . . Relay Couplers Released . | . . . Fabnet Peak Effective % . | . . . Robots Rewired . | . . . Allies Hacked . | . . . Hacks Repelled . | . . . Allies | -11 -10 -10 -------- Run | Yrd Mat Min Total Allies . | . . . Largest Group . | . . . Highest-Rated Group . | . . . Highest-Rated Ally . | . . . Total Orders . | . . . Ally Attacks . | . . . Total Damage . | . . . Kills . | . . . Allies Corrupted . | . . . Allies Melted . | . . . Intel | -11 -10 -10 ------- Run | Yrd Mat Min Robot Analysis Total 2 | . 2 . Derelict Logs Recovered . | . . . Drone Launches . | . . . Drone Recoveries . | . . . Exploration | -11 -10 -10 ------------- Run | Yrd Mat Min Turns Passed 1784 | 56 1447 281 Spaces Moved 883 | 29 707 147 Core 8 | 8 . . Treads 875 | 21 707 147 Legs . | . . . Wheels . | . . . Hover . | . . . Flight . | . . . Fastest Speed 50 | 50 160 160 Average Speed 159 | 158 160 160 Slowest Speed 200 | 200 160 160 Overloaded Moves . | . . . Propulsion Burnouts . | . . . Robots Hopped . | . . . Cave-ins Triggered . | . . . Exploration Rate (%) 49 | 4 93 50 Regions Visited 2 Branch Regions 1 Pre-discovered Areas . | . . . Known Exits Taken . | . . . Unknown Exits Taken 2 | 1 1 . Scrap Searched . | . . . Spaces Dug . | . . . Terrain Destroyed 81 | . 31 50 Melee . | . . . Projectile . | . . . AOE 81 | . 31 50 Terrain Rammed . | . . . Walls Destroyed . | . . . Machines Disabled . | . . . Actions | -11 -10 -10 --------- Run | Yrd Mat Min Total 1101 | 36 894 171 Wait 79 | . 74 5 Move 881 | 28 706 147 Hop . | . . . Pick Up 19 | 2 17 . Fast Attach 8 | 6 2 . Attach 4 | . 2 2 Detach 1 | . 1 . Swap 16 | . 10 6 Drop 7 | . 7 . Fire 71 | . 60 11 Melee . | . . . Ram . | . . . Kick . | . . . Crush 15 | . 15 . Escape Stasis . | . . . Rewire . | . . . Trap . | . . . Miscellaneous . | . . . Route ------- -11/Scrapyard -10/Materials (discovered 5 exits: [*Mat x3] / [*Min x2]) -10/Mines History --------- Turn | Location | Event 21 | -11/Scrapyard | Discovered new exit (range 16) 57 | -11/Scrapyard | Entered Materials 311 | -10/Materials | Build established: Mutant 339 | -10/Materials | Discovered new exit (range 6) 354 | -10/Materials | Discovered new exit (range 13) 407 | -10/Materials | Discovered new exit (range 15) 732 | -10/Materials | Repaired Assault Rifle 771 | -10/Materials | Central database locked down 812 | -10/Materials | Discovered new exit (range 15) 1307 | -10/Materials | Discovered new exit (range 15) 1504 | -10/Materials | Entered Mines 1691 | -10/Mines | Assembled infested the area 1778 | -10/Mines | Core integrity fell below 50% 1785 | -10/Mines | Core integrity fell below 20% 1785 | -10/Mines | Destroyed by D-53 Grenadier with Mini Grenade Launcher Last Messages --------------- S-10 Pest destroyed. Acquired 6 matter. Acquired 9 matter. Acquired 3 matter. as-17078 destroyed. as-51016 destroyed. as-54368 suffers critical hit (Burn). The unstable cave ceiling collapses. as-54368 destroyed. Acquired 11 matter. Acquired 3 matter. The unstable cave ceiling collapses. Matter Pump disabled. Lgt. Treads destroyed. The unstable cave ceiling collapses. Heat Sink destroyed. Grenade Launcher destroyed. The unstable cave ceiling collapses. Lgt. Treads destroyed. The unstable cave ceiling collapses. Map ----- +----------------------------------------------------+ | | | | | | | | | | | | | | | | | | | | | | | | | | | | | | | ??????????????????????????????????????????? | | ??????????????????????????????????????????? | | ??????????????????????????????????????????? | | ??????????????????????????????????????????? | | ??????????????????????????????????????????? | | ???????????????#######??##???#????????????? | | ??????????????## ## ## ????????????? | | ?????????????## ?????????????? | | ?????????????# """ #?????????? | | ?????######### #????????? | | ?????# @ #????????????? | | ?????# = d #????????????? | | ?????# d #????????????? | | ?????# #????????????? | | ?????# "" ##????????????? | | ?????# "" ### ######?????????????? | | ?????# " #??##??????????????????? | | ?????# " " # ##??????????????????????? | | ?????# ### #???????????????????????? | | ?????############ #???????????????????????? | | ??????????????## ##??????????????????????? | | ??????????????# ##?????????????????????? | | ??????????????# ##????????????????????? | | ??????????????## ##???????????????????? | | ???????????????# *% ###?????????????????? | | ???????????????## %= #?????????????????? | | ????????????????### ##????????????????? | | ??????????????????## % #????????????????? | | ???????????????????# [ ##????????????????? | | ???????????????????# #????????????????? | | ??????????????????## #????????????????? | | ??????????????##### #????????????????? | | ?????????????## ##????????????????? | | ?????????????# #?????????????????? | | ???????####### ##????????????????? | +----------------------------------------------------+ Best States ------------- Heat Dissipation 35 Energy Generation 14 Energy Capacity 250 Matter Stores 300 Matter Capacity 300 Sight Range 16 Terrain Scan Density 10 Evasion (%) 40 Recoil Reduction 2 Item Schematics ----------------- None Robot Schematics ------------------ None Fabricated ------------ Nothing Alien Tech Used ----------------- None Achievements -------------- None Challenges ------------ None Game ------ Seed ChainHypervelocityTrap Manual? 0 Play Time 00:14:50 Cumulative 35.2 hours Start 2024.04.11 @ 16:01:56 End 2024.04.11 @ 16:14:51 Sessions 1 Manual Loads 0 Difficulty Rogue Special Mode None Game No. 29 Rogue 29 Adventurer 0 Explorer 0 Win Type - Total 1 Types 1/0/0/0/0/0/0/0/0 Lore% 31 Gallery% 29 Achievement% 32 Wizard Run 0 Options --------- Layout 1 ASCII 0 Keyboard 0 Movement Arrows Keybinds 0 Fullscreen 1 Font 24/Smallcaps Map View 50x35 Zoom Use 0% Tactical HUD 0 Map Filters NONE Filters NONE Steam 1 RUN: 48de74c0-dcfe-4201-bc4c-8adaa2233575